[Event "*** Titled Tuesday Blitz"]
[Site "Chess.com"]
[Date "2020.11.24"]
[Round "10"]
[White "DrVelja"]
[Black "LiderChessAcademy"]
[Result "1-0"]
[WhiteElo "2782"]
[BlackElo "2577"]
[TimeControl "180+1"]
[EndTime "12:15:09 PST"]
[Termination "DrVelja won on time"]

1. e4 {[%clk 0:02:56.7]} 1... c5 {[%clk 0:02:59.9]} 2. Nc3 {[%clk 0:02:55.7]}
2... Nc6 {[%clk 0:02:59.2]} 3. f4 {[%clk 0:02:55.8]} 3... g6 {[%clk 0:02:59.1]}
4. Nf3 {[%clk 0:02:55.2]} 4... Bg7 {[%clk 0:02:59.1]} 5. Bb5 {[%clk 0:02:55.8]}
5... Nd4 {[%clk 0:02:56.1]} 6. O-O {[%clk 0:02:55.4]} 6... a6 {[%clk 0:02:51.8]}
7. Bd3 {[%clk 0:02:50.8]} 7... d6 {[%clk 0:02:51.7]} 8. Nxd4 {[%clk 0:02:48]}
8... cxd4 {[%clk 0:02:52.2]} 9. Ne2 {[%clk 0:02:48.9]} 9... Nf6 {[%clk
0:02:43.8]} 10. c3 {[%clk 0:02:45.9]} 10... dxc3 {[%clk 0:02:37.3]} 11. bxc3
{[%clk 0:02:46.2]} 11... O-O {[%clk 0:02:34.8]} 12. Kh1 {[%clk 0:02:44.1]} 12...
b6 {[%clk 0:02:29.7]} 13. Bc2 {[%clk 0:02:41.3]} 13... Bb7 {[%clk 0:02:29.1]}
14. d3 {[%clk 0:02:41.2]} 14... Qc7 {[%clk 0:02:17.1]} 15. a4 {[%clk 0:02:35.2]}
15... Nd7 {[%clk 0:02:03.2]} 16. Rb1 {[%clk 0:02:34.3]} 16... f5 {[%clk
0:01:59.3]} 17. Nd4 {[%clk 0:02:13.8]} 17... Nc5 {[%clk 0:01:34.7]} 18. exf5
{[%clk 0:01:48.3]} 18... gxf5 {[%clk 0:01:35.6]} 19. Nf3 {[%clk 0:01:48.8]}
19... e5 {[%clk 0:01:31.6]} 20. d4 {[%clk 0:01:39]} 20... Ne4 {[%clk 0:01:26.7]}
21. Bb3+ {[%clk 0:01:24.8]} 21... Kh8 {[%clk 0:01:23.3]} 22. Rb2 {[%clk
0:00:49.1]} 22... Nxc3 {[%clk 0:01:05.7]} 23. Qe1 {[%clk 0:00:49.5]} 23... exd4
{[%clk 0:01:02.7]} 24. Ng5 {[%clk 0:00:48.9]} 24... Rae8 {[%clk 0:00:57.4]} 25.
Qh4 {[%clk 0:00:37.1]} 25... Bf6 {[%clk 0:00:52.9]} 26. Qh5 {[%clk 0:00:28.7]}
26... Qg7 {[%clk 0:00:41.8]} 27. Nf7+ {[%clk 0:00:26.6]} 27... Rxf7 {[%clk
0:00:41.3]} 28. Bxf7 {[%clk 0:00:18.8]} 28... Re7 {[%clk 0:00:34.1]} 29. Bc4
{[%clk 0:00:19.2]} 29... Nxa4 {[%clk 0:00:21]} 30. Re2 {[%clk 0:00:16.4]} 30...
Be4 {[%clk 0:00:14.1]} 31. Ref2 {[%clk 0:00:05.2]} 31... b5 {[%clk 0:00:11.6]}
32. Bb3 {[%clk 0:00:04]} 32... Nc5 {[%clk 0:00:10.7]} 33. Ba2 {[%clk 0:00:03.1]}
33... d3 {[%clk 0:00:10.8]} 34. Be3 {[%clk 0:00:02.8]} 34... Bd4 {[%clk
0:00:09.7]} 35. Bxd4 {[%clk 0:00:02.3]} 35... Qxd4 {[%clk 0:00:10.6]} 36. Qg5
{[%clk 0:00:02.9]} 36... Qg7 {[%clk 0:00:08.7]} 37. Qh4 {[%clk 0:00:03.5]} 37...
d5 {[%clk 0:00:08.5]} 38. Rc1 {[%clk 0:00:03.2]} 38... d2 {[%clk 0:00:04.5]} 39.
Rxd2 {[%clk 0:00:02.3]} 39... Ne6 {[%clk 0:00:02.1]} 40. Rc8+ {[%clk 0:00:02.4]}
40... Nf8 {[%clk 0:00:02.4]} 41. h3 {[%clk 0:00:02.7]} 41... Rf7 {[%clk
0:00:02.1]} 42. Re2 {[%clk 0:00:02.3]} 42... Qf6 {[%clk 0:00:03]} 43. Qg3 {[%clk
0:00:02.2]} 43... Rg7 {[%clk 0:00:02.9]} 44. Qf2 {[%clk 0:00:02.1]} 44... Rg8
{[%clk 0:00:03.8]} 45. Qe3 {[%clk 0:00:02.3]} 45... Ng6 {[%clk 0:00:04.1]} 46.
Rxg8+ {[%clk 0:00:02.1]} 46... Kxg8 {[%clk 0:00:05]} 47. Qc5 {[%clk 0:00:02.8]}
47... Qa1+ {[%clk 0:00:04.7]} 48. Kh2 {[%clk 0:00:02.7]} 48... Nxf4 {[%clk
0:00:04.9]} 49. Qc8+ {[%clk 0:00:03]} 49... Kg7 {[%clk 0:00:04.7]} 50. Qc7+
{[%clk 0:00:03.8]} 50... Kg6 {[%clk 0:00:04.7]} 51. Qxf4 {[%clk 0:00:04.7]}
51... Qf6 {[%clk 0:00:05]} 52. Rf2 {[%clk 0:00:04.9]} 52... a5 {[%clk
0:00:03.9]} 53. g4 {[%clk 0:00:05.2]} 53... Kg7 {[%clk 0:00:02.9]} 54. gxf5
{[%clk 0:00:05.7]} 54... b4 {[%clk 0:00:03.4]} 55. Bb3 {[%clk 0:00:05.9]} 55...
Kf8 {[%clk 0:00:02.2]} 56. Qb8+ {[%clk 0:00:05.7]} 56... Ke7 {[%clk 0:00:02.4]}
57. Qa7+ {[%clk 0:00:05.7]} 57... Ke8 {[%clk 0:00:02.7]} 58. Qb8+ {[%clk
0:00:06.2]} 58... Ke7 {[%clk 0:00:02.4]} 59. Ba4 {[%clk 0:00:07.1]} 1-0

[Event "*** Titled Tuesday Blitz"]
[Site "Chess.com"]
[Date "2020.11.24"]
[Round "10"]
[White "Witik"]
[Black "maximnovik"]
[Result "1-0"]
[WhiteElo "2698"]
[BlackElo "2548"]
[TimeControl "180+1"]
[EndTime "12:15:24 PST"]
[Termination "Witik won on time"]

1. e4 {[%clk 0:03:00.9]} 1... c6 {[%clk 0:02:59.3]} 2. d4 {[%clk 0:03:00.5]}
2... d5 {[%clk 0:02:59.7]} 3. e5 {[%clk 0:03:00.8]} 3... Bf5 {[%clk 0:02:58.8]}
4. h4 {[%clk 0:02:59.8]} 4... h6 {[%clk 0:02:57.3]} 5. g4 {[%clk 0:02:59.3]}
5... Bd7 {[%clk 0:02:57.7]} 6. Nd2 {[%clk 0:02:58.8]} 6... h5 {[%clk 0:02:55.7]}
7. gxh5 {[%clk 0:02:58]} 7... Bf5 {[%clk 0:02:55.1]} 8. Nb3 {[%clk 0:02:54.3]}
8... e6 {[%clk 0:02:55.2]} 9. Be2 {[%clk 0:02:10.7]} 9... c5 {[%clk 0:02:52.3]}
10. dxc5 {[%clk 0:02:09.5]} 10... Nd7 {[%clk 0:02:51.2]} 11. Nf3 {[%clk
0:02:06.1]} 11... Nxc5 {[%clk 0:02:48.9]} 12. Nbd4 {[%clk 0:01:51.6]} 12... Be4
{[%clk 0:02:45.5]} 13. Rg1 {[%clk 0:01:31.4]} 13... Ne7 {[%clk 0:02:43.9]} 14.
Bb5+ {[%clk 0:01:27.5]} 14... Nd7 {[%clk 0:02:42.6]} 15. Ng5 {[%clk 0:01:27.4]}
15... Qc7 {[%clk 0:02:27.6]} 16. Bf4 {[%clk 0:00:54.6]} 16... Nc6 {[%clk
0:02:19.4]} 17. Nxe4 {[%clk 0:00:43]} 17... dxe4 {[%clk 0:02:18.4]} 18. c3
{[%clk 0:00:21.2]} 18... O-O-O {[%clk 0:02:00.4]} 19. Bxc6 {[%clk 0:00:21]}
19... bxc6 {[%clk 0:01:59.5]} 20. Qe2 {[%clk 0:00:14.3]} 20... Nc5 {[%clk
0:01:54]} 21. O-O-O {[%clk 0:00:10.8]} 21... Nd3+ {[%clk 0:01:53.9]} 22. Rxd3
{[%clk 0:00:11]} 22... exd3 {[%clk 0:01:54]} 23. Qxd3 {[%clk 0:00:11.9]} 23...
c5 {[%clk 0:01:51.8]} 24. Qa6+ {[%clk 0:00:11.2]} 24... Qb7 {[%clk 0:01:51.8]}
25. Qxb7+ {[%clk 0:00:11.5]} 25... Kxb7 {[%clk 0:01:51.9]} 26. Nf3 {[%clk
0:00:10.8]} 26... Rxh5 {[%clk 0:01:49.3]} 27. Kc2 {[%clk 0:00:07.7]} 27... Rf5
{[%clk 0:01:40.8]} 28. Rg4 {[%clk 0:00:06.3]} 28... Be7 {[%clk 0:01:40.8]} 29.
Nd2 {[%clk 0:00:04]} 29... g6 {[%clk 0:01:34.1]} 30. Ne4 {[%clk 0:00:02]} 30...
Rh8 {[%clk 0:01:34.4]} 31. Bg3 {[%clk 0:00:02.1]} 31... Rfh5 {[%clk 0:01:30.9]}
32. Rf4 {[%clk 0:00:01.7]} 32... R8h7 {[%clk 0:01:30]} 33. c4 {[%clk 0:00:01.2]}
33... Kc6 {[%clk 0:01:29]} 34. Nf6 {[%clk 0:00:01.6]} 34... Bxf6 {[%clk
0:01:27]} 35. Rxf6 {[%clk 0:00:02.5]} 35... Rf5 {[%clk 0:00:49.6]} 36. Rxf5
{[%clk 0:00:01.9]} 36... exf5 {[%clk 0:00:49.8]} 37. Kd3 {[%clk 0:00:02.2]}
37... Rh8 {[%clk 0:00:49.8]} 38. Ke3 {[%clk 0:00:02.6]} 38... Rd8 {[%clk
0:00:49.7]} 39. Kf4 {[%clk 0:00:03.1]} 39... Kd7 {[%clk 0:00:46.1]} 40. h5
{[%clk 0:00:03.6]} 40... Ke6 {[%clk 0:00:40]} 41. h6 {[%clk 0:00:04]} 41... f6
{[%clk 0:00:30.9]} 42. exf6 {[%clk 0:00:03.7]} 42... Rd4+ {[%clk 0:00:29.9]} 43.
Ke3 {[%clk 0:00:03.4]} 43... Kxf6 {[%clk 0:00:29]} 44. h7 {[%clk 0:00:03.7]}
44... Rd8 {[%clk 0:00:27.7]} 45. Bd6 {[%clk 0:00:04.2]} 45... Rh8 {[%clk
0:00:16.9]} 46. Bxc5 {[%clk 0:00:04.7]} 46... Rxh7 {[%clk 0:00:17.3]} 47. f4
{[%clk 0:00:05.2]} 47... Rh2 {[%clk 0:00:13.6]} 48. Bd4+ {[%clk 0:00:04.6]}
48... Ke6 {[%clk 0:00:12.8]} 49. a4 {[%clk 0:00:05.5]} 49... Rh3+ {[%clk
0:00:12.2]} 50. Kd2 {[%clk 0:00:05.7]} 50... Rf3 {[%clk 0:00:10.8]} 51. Be3
{[%clk 0:00:06.2]} 51... g5 {[%clk 0:00:10.3]} 52. fxg5 {[%clk 0:00:06.4]} 52...
f4 {[%clk 0:00:10.4]} 53. Bd4 {[%clk 0:00:06.9]} 53... Kf5 {[%clk 0:00:10.8]}
54. c5 {[%clk 0:00:06.5]} 54... Ke4 {[%clk 0:00:10.2]} 55. Bf6 {[%clk
0:00:05.8]} 55... Rg3 {[%clk 0:00:09.3]} 56. c6 {[%clk 0:00:05.6]} 56... f3
{[%clk 0:00:08.7]} 57. c7 {[%clk 0:00:05.5]} 57... f2 {[%clk 0:00:08.4]} 58. Ke2
{[%clk 0:00:05.7]} 58... Rf3 {[%clk 0:00:06.8]} 59. Kf1 {[%clk 0:00:05.7]} 59...
Rd3 {[%clk 0:00:05.1]} 60. Kxf2 {[%clk 0:00:04]} 60... Rd2+ {[%clk 0:00:04.6]}
61. Ke1 {[%clk 0:00:04.3]} 61... Rc2 {[%clk 0:00:05.2]} 62. Bc3 {[%clk
0:00:04.7]} 62... Ke3 {[%clk 0:00:03]} 63. Kf1 {[%clk 0:00:05]} 63... Kf3 {[%clk
0:00:02.6]} 64. Ke1 {[%clk 0:00:05.1]} 64... Ke3 {[%clk 0:00:02.7]} 65. Kd1
{[%clk 0:00:05.6]} 65... Kd3 {[%clk 0:00:01.5]} 66. c8=Q {[%clk 0:00:05.1]} 1-0

[Event "*** Titled Tuesday Blitz"]
[Site "Chess.com"]
[Date "2020.11.24"]
[Round "10"]
[White "witcher8"]
[Black "KetiTsatsalashvili"]
[Result "0-1"]
[WhiteElo "2426"]
[BlackElo "2320"]
[TimeControl "180+1"]
[EndTime "12:15:33 PST"]
[Termination "KetiTsatsalashvili won by checkmate"]

1. e4 {[%clk 0:03:00.9]} 1... c5 {[%clk 0:02:57.4]} 2. Nc3 {[%clk 0:03:00.2]}
2... Nc6 {[%clk 0:02:56.2]} 3. f4 {[%clk 0:03:00.2]} 3... e6 {[%clk 0:02:54.9]}
4. Nf3 {[%clk 0:03:00.1]} 4... d5 {[%clk 0:02:55]} 5. Bb5 {[%clk 0:03:00]} 5...
Nf6 {[%clk 0:02:45.5]} 6. d3 {[%clk 0:02:59.1]} 6... Be7 {[%clk 0:02:45.2]} 7.
O-O {[%clk 0:02:52.9]} 7... Qb6 {[%clk 0:02:37.1]} 8. Bxc6+ {[%clk 0:02:53]}
8... Qxc6 {[%clk 0:02:30.2]} 9. Ne5 {[%clk 0:02:46.6]} 9... Qb6 {[%clk
0:02:30.3]} 10. f5 {[%clk 0:02:40.6]} 10... O-O {[%clk 0:02:14.4]} 11. fxe6
{[%clk 0:02:39]} 11... Bxe6 {[%clk 0:01:54.6]} 12. Kh1 {[%clk 0:02:21.2]} 12...
dxe4 {[%clk 0:01:47.2]} 13. dxe4 {[%clk 0:02:19.7]} 13... Qd6 {[%clk 0:01:40.7]}
14. Nf3 {[%clk 0:02:11.7]} 14... Qxd1 {[%clk 0:01:38.4]} 15. Rxd1 {[%clk
0:02:11.6]} 15... Rfd8 {[%clk 0:01:31.7]} 16. Bf4 {[%clk 0:02:11.4]} 16... c4
{[%clk 0:01:29.3]} 17. Kg1 {[%clk 0:02:05.7]} 17... Bc5+ {[%clk 0:01:27.8]} 18.
Kf1 {[%clk 0:02:06]} 18... Bb4 {[%clk 0:01:24.3]} 19. Bg5 {[%clk 0:01:58.4]}
19... Bxc3 {[%clk 0:01:19.7]} 20. bxc3 {[%clk 0:01:58.2]} 20... Rxd1+ {[%clk
0:01:19.6]} 21. Rxd1 {[%clk 0:01:57.1]} 21... Nxe4 {[%clk 0:01:20.1]} 22. Be3
{[%clk 0:01:50.1]} 22... Nxc3 {[%clk 0:01:18.2]} 23. Rd6 {[%clk 0:01:45.4]}
23... Nd5 {[%clk 0:01:10.4]} 24. Bf2 {[%clk 0:01:41.4]} 24... b6 {[%clk
0:01:05.5]} 25. Nd4 {[%clk 0:01:40.6]} 25... Re8 {[%clk 0:01:05]} 26. Nxe6
{[%clk 0:01:38.2]} 26... fxe6 {[%clk 0:01:05.9]} 27. Rc6 {[%clk 0:01:36.2]}
27... Kf7 {[%clk 0:01:03.3]} 28. Rxc4 {[%clk 0:01:34.7]} 28... Ke7 {[%clk
0:01:02]} 29. Ke2 {[%clk 0:01:31.2]} 29... Kd7 {[%clk 0:01:01.6]} 30. Rg4 {[%clk
0:01:27.2]} 30... g6 {[%clk 0:01:00.4]} 31. c4 {[%clk 0:01:25]} 31... Nc3+
{[%clk 0:00:43.6]} 32. Kd3 {[%clk 0:01:24.2]} 32... Nxa2 {[%clk 0:00:35.1]} 33.
c5 {[%clk 0:01:24.6]} 33... Kc6 {[%clk 0:00:23.3]} 34. cxb6 {[%clk 0:01:22.7]}
34... axb6 {[%clk 0:00:24.2]} 35. Ra4 {[%clk 0:01:11]} 35... Nc1+ {[%clk
0:00:23.2]} 36. Kc2 {[%clk 0:01:00.4]} 36... Kb5 {[%clk 0:00:22.3]} 37. Ra1
{[%clk 0:00:44.7]} 37... Rc8+ {[%clk 0:00:21.8]} 38. Kd1 {[%clk 0:00:42]} 38...
Nb3 {[%clk 0:00:13.4]} 39. Rb1 {[%clk 0:00:41.2]} 39... Kc4 {[%clk 0:00:13.6]}
40. Bxb6 {[%clk 0:00:38.9]} 40... Rc6 {[%clk 0:00:13.7]} 41. Be3 {[%clk
0:00:36.3]} 41... Rd6+ {[%clk 0:00:08.9]} 42. Ke2 {[%clk 0:00:36.5]} 42... Nd4+
{[%clk 0:00:07.9]} 43. Kf2 {[%clk 0:00:36.9]} 43... Kd5 {[%clk 0:00:07.6]} 44.
Rb4 {[%clk 0:00:34.6]} 44... e5 {[%clk 0:00:07.5]} 45. Rb7 {[%clk 0:00:33.7]}
45... Ke4 {[%clk 0:00:07.5]} 46. Rxh7 {[%clk 0:00:32.8]} 46... Rf6+ {[%clk
0:00:07.6]} 47. Ke1 {[%clk 0:00:24.8]} 47... Kxe3 {[%clk 0:00:08.5]} 48. Rh3+
{[%clk 0:00:25.2]} 48... Ke4 {[%clk 0:00:08.5]} 49. Rg3 {[%clk 0:00:24.2]} 49...
Nf5 {[%clk 0:00:07.2]} 50. Ra3 {[%clk 0:00:21.6]} 50... Rb6 {[%clk 0:00:07.3]}
51. Ra2 {[%clk 0:00:18.5]} 51... Nd4 {[%clk 0:00:07.1]} 52. Kf2 {[%clk
0:00:18.3]} 52... Rc6 {[%clk 0:00:07.6]} 53. Ra3 {[%clk 0:00:17.7]} 53... Rc2+
{[%clk 0:00:07.3]} 54. Kg3 {[%clk 0:00:18.1]} 54... Kf5 {[%clk 0:00:07.7]} 55.
h3 {[%clk 0:00:17]} 55... Ne2+ {[%clk 0:00:08]} 56. Kf3 {[%clk 0:00:16.5]} 56...
Nf4 {[%clk 0:00:08.4]} 57. g4+ {[%clk 0:00:14.6]} 57... Kg5 {[%clk 0:00:08.5]}
58. Kg3 {[%clk 0:00:14.5]} 58... Rd2 {[%clk 0:00:07.4]} 59. h4+ {[%clk
0:00:14.4]} 59... Kf6 {[%clk 0:00:07.9]} 60. Ra6+ {[%clk 0:00:12]} 60... Ne6
{[%clk 0:00:08.4]} 61. Kf3 {[%clk 0:00:10.8]} 61... Rd1 {[%clk 0:00:08.3]} 62.
Kg3 {[%clk 0:00:10.9]} 62... Rd3+ {[%clk 0:00:08.4]} 63. Kg2 {[%clk 0:00:09.5]}
63... e4 {[%clk 0:00:09]} 64. Kf2 {[%clk 0:00:07.6]} 64... Ke5 {[%clk
0:00:08.9]} 65. h5 {[%clk 0:00:05.9]} 65... gxh5 {[%clk 0:00:08.1]} 66. gxh5
{[%clk 0:00:06.8]} 66... Nd4 {[%clk 0:00:08.6]} 67. h6 {[%clk 0:00:05.9]} 67...
Kf4 {[%clk 0:00:09]} 68. Rf6+ {[%clk 0:00:04.6]} 68... Nf5 {[%clk 0:00:09]} 69.
Ke2 {[%clk 0:00:03.9]} 69... Rh3 {[%clk 0:00:09.5]} 70. Re6 {[%clk 0:00:02.4]}
70... Rxh6 {[%clk 0:00:09.8]} 71. Re8 {[%clk 0:00:02.8]} 71... Rh2+ {[%clk
0:00:10]} 72. Kf1 {[%clk 0:00:02.8]} 72... e3 {[%clk 0:00:10.4]} 73. Rf8 {[%clk
0:00:02.5]} 73... Ra2 {[%clk 0:00:10.5]} 74. Ke1 {[%clk 0:00:02.3]} 74... Ke4
{[%clk 0:00:10.6]} 75. Re8+ {[%clk 0:00:01.9]} 75... Kf3 {[%clk 0:00:10.5]} 76.
Rf8 {[%clk 0:00:01.9]} 76... Ra1# {[%clk 0:00:10.8]} 0-1

[Event "*** Titled Tuesday Blitz"]
[Site "Chess.com"]
[Date "2020.11.24"]
[Round "10"]
[White "The_Machine04"]
[Black "IceBelka"]
[Result "1-0"]
[WhiteElo "2495"]
[BlackElo "2323"]
[TimeControl "180+1"]
[EndTime "12:16:06 PST"]
[Termination "The_Machine04 won on time"]

1. d4 {[%clk 0:03:00.9]} 1... d5 {[%clk 0:02:57.5]} 2. Bf4 {[%clk 0:03:00.9]}
2... e6 {[%clk 0:02:54.8]} 3. e3 {[%clk 0:03:00.6]} 3... Bd6 {[%clk 0:02:54.5]}
4. Bg3 {[%clk 0:03:00.3]} 4... c5 {[%clk 0:02:54.3]} 5. Nf3 {[%clk 0:02:59.9]}
5... Qc7 {[%clk 0:02:54.2]} 6. Ne5 {[%clk 0:02:59.1]} 6... Nd7 {[%clk
0:02:47.9]} 7. f4 {[%clk 0:02:58.3]} 7... Ngf6 {[%clk 0:02:31.9]} 8. Nd2 {[%clk
0:02:52.9]} 8... cxd4 {[%clk 0:02:17.8]} 9. exd4 {[%clk 0:02:50]} 9... Qb6
{[%clk 0:02:17.7]} 10. Nb3 {[%clk 0:02:44.5]} 10... Ne4 {[%clk 0:02:13.5]} 11.
c3 {[%clk 0:02:39.2]} 11... O-O {[%clk 0:01:56.9]} 12. Bd3 {[%clk 0:02:38.5]}
12... f6 {[%clk 0:01:42.8]} 13. Nxd7 {[%clk 0:02:28.4]} 13... Bxd7 {[%clk
0:01:43.7]} 14. Qe2 {[%clk 0:02:25.8]} 14... f5 {[%clk 0:01:39.9]} 15. O-O
{[%clk 0:02:10.1]} 15... a5 {[%clk 0:01:29.4]} 16. Nc1 {[%clk 0:02:03.8]} 16...
a4 {[%clk 0:01:27.4]} 17. a3 {[%clk 0:01:59.4]} 17... Rae8 {[%clk 0:00:57.5]}
18. Bb1 {[%clk 0:01:37]} 18... Bb5 {[%clk 0:00:54.4]} 19. Bd3 {[%clk 0:01:33.9]}
19... Bxd3 {[%clk 0:00:53.8]} 20. Nxd3 {[%clk 0:01:34.8]} 20... Rc8 {[%clk
0:00:43.8]} 21. Ne5 {[%clk 0:01:12.3]} 21... Bxe5 {[%clk 0:00:42.9]} 22. fxe5
{[%clk 0:01:13.2]} 22... Qb3 {[%clk 0:00:35.6]} 23. Bf4 {[%clk 0:01:02.5]} 23...
Qc4 {[%clk 0:00:27.2]} 24. Rae1 {[%clk 0:00:57.2]} 24... b5 {[%clk 0:00:25.8]}
25. Rf3 {[%clk 0:00:48.2]} 25... Qxe2 {[%clk 0:00:25.1]} 26. Rxe2 {[%clk
0:00:48.3]} 26... g5 {[%clk 0:00:23.6]} 27. Bc1 {[%clk 0:00:47.3]} 27... g4
{[%clk 0:00:20.6]} 28. Rf4 {[%clk 0:00:42]} 28... Kg7 {[%clk 0:00:20.5]} 29. h3
{[%clk 0:00:30]} 29... h5 {[%clk 0:00:20.3]} 30. h4 {[%clk 0:00:25.9]} 30... Kg6
{[%clk 0:00:20.6]} 31. Kh2 {[%clk 0:00:24.1]} 31... Rc4 {[%clk 0:00:13.5]} 32.
g3 {[%clk 0:00:20.5]} 32... Rfc8 {[%clk 0:00:13.2]} 33. Bd2 {[%clk 0:00:10.4]}
33... R4c6 {[%clk 0:00:09.8]} 34. Rf1 {[%clk 0:00:09.4]} 34... R6c7 {[%clk
0:00:09.4]} 35. Kg2 {[%clk 0:00:07.1]} 35... Nxd2 {[%clk 0:00:08.8]} 36. Rxd2
{[%clk 0:00:07.3]} 36... Rf7 {[%clk 0:00:09.3]} 37. Rf4 {[%clk 0:00:06.8]} 37...
Rcf8 {[%clk 0:00:09.8]} 38. Kf2 {[%clk 0:00:07]} 38... Rc7 {[%clk 0:00:09.9]}
39. Ke2 {[%clk 0:00:07.5]} 39... Rfc8 {[%clk 0:00:09.6]} 40. Kd3 {[%clk
0:00:07.8]} 40... Rc4 {[%clk 0:00:09.7]} 41. Rc2 {[%clk 0:00:07.6]} 41... R4c6
{[%clk 0:00:09.8]} 42. Rff2 {[%clk 0:00:07.8]} 42... Rc4 {[%clk 0:00:09.8]} 43.
Rf4 {[%clk 0:00:08.3]} 43... Rf8 {[%clk 0:00:09.7]} 44. Rcf2 {[%clk 0:00:05.6]}
44... Rc7 {[%clk 0:00:09.7]} 45. Rc2 {[%clk 0:00:05.7]} 45... Rcf7 {[%clk
0:00:09.9]} 46. Rd2 {[%clk 0:00:04.9]} 46... Kg7 {[%clk 0:00:10.1]} 47. Rc2
{[%clk 0:00:05.2]} 47... Rc7 {[%clk 0:00:10.2]} 48. Rd2 {[%clk 0:00:05.2]} 48...
Rc4 {[%clk 0:00:10.4]} 49. Rc2 {[%clk 0:00:05.5]} 49... Kf7 {[%clk 0:00:10.7]}
50. Rff2 {[%clk 0:00:05.2]} 50... Ke7 {[%clk 0:00:10.8]} 51. Rf4 {[%clk
0:00:06.1]} 51... Kd7 {[%clk 0:00:11.2]} 52. Rd2 {[%clk 0:00:06.3]} 52... Kc6
{[%clk 0:00:11.4]} 53. Rc2 {[%clk 0:00:06.9]} 53... Kb6 {[%clk 0:00:11.8]} 54.
Rd2 {[%clk 0:00:06.7]} 54... Rfc8 {[%clk 0:00:12.3]} 55. Rc2 {[%clk 0:00:06.1]}
55... b4 {[%clk 0:00:12.8]} 56. axb4 {[%clk 0:00:05.9]} 56... a3 {[%clk
0:00:13.3]} 57. bxa3 {[%clk 0:00:05.6]} 57... Kb5 {[%clk 0:00:12.7]} 58. Rf1
{[%clk 0:00:04.9]} 58... Ka4 {[%clk 0:00:13]} 59. Ra1 {[%clk 0:00:05.2]} 59...
Kb3 {[%clk 0:00:11.3]} 60. Rb1+ {[%clk 0:00:05.3]} 60... Kxa3 {[%clk 0:00:10.6]}
61. b5 {[%clk 0:00:05.5]} 61... Rb8 {[%clk 0:00:08.4]} 62. b6 {[%clk 0:00:05.7]}
62... Rc6 {[%clk 0:00:07.6]} 63. b7 {[%clk 0:00:05.8]} 63... Rc7 {[%clk
0:00:07.8]} 64. Rcb2 {[%clk 0:00:06]} 64... Rc6 {[%clk 0:00:03.4]} 65. Rb6
{[%clk 0:00:04.8]} 65... Rxb6 {[%clk 0:00:01.8]} 66. Rxb6 {[%clk 0:00:05.7]}
66... Ka4 {[%clk 0:00:02]} 67. Rxe6 {[%clk 0:00:05.9]} 67... Rxb7 {[%clk
0:00:02.5]} 68. Rd6 {[%clk 0:00:06.2]} 68... Rb1 {[%clk 0:00:02.3]} 69. Rxd5
{[%clk 0:00:05.7]} 69... Rg1 {[%clk 0:00:02.8]} 70. e6 {[%clk 0:00:03.8]} 70...
Rxg3+ {[%clk 0:00:03.4]} 71. Kd2 {[%clk 0:00:03.1]} 71... Rg2+ {[%clk
0:00:03.8]} 72. Ke3 {[%clk 0:00:03]} 72... Rg1 {[%clk 0:00:03.6]} 73. Rxf5
{[%clk 0:00:02.8]} 73... Re1+ {[%clk 0:00:03.2]} 74. Kf4 {[%clk 0:00:03.4]}
74... Rxe6 {[%clk 0:00:03.4]} 75. Rxh5 {[%clk 0:00:03.7]} 75... Kb3 {[%clk
0:00:03.4]} 76. Rc5 {[%clk 0:00:03.6]} 76... Rg6 {[%clk 0:00:02.5]} 77. Kg3
{[%clk 0:00:04.2]} 77... Rg8 {[%clk 0:00:01.1]} 78. h5 {[%clk 0:00:05.1]} 78...
Rh8 {[%clk 0:00:01.1]} 79. Kxg4 {[%clk 0:00:05.1]} 79... Rg8+ {[%clk 0:00:01.5]}
80. Kf4 {[%clk 0:00:05.4]} 1-0